Workbook

Sheet Sheet1
A1: INSTRUCTIONS: Use this form when a single information collection document involves multiple reporting and recordkeeping requirements. The totals of the figures in columns should be entered in item 13 of OMB-83-1: columns (D) &/or (I) = 13a (respondent is only counted once); columns F & I = 13b; columns H & K = 13c. (F)Total/(D)Total = (E)Average; (H)Total/(F)Total = (G)Average; (K)Total/(I)Total = (J)Average. NOTE: The columns will calculate automatically. If column E's response is something other than annually, i.e., 1/6 years, list as "1/6" & decimal will display. | J1: TITLE OF INFORMATION COLLECTION DOCUMENT | N1: OMB NO.
N3: 0581-0189
J5: Fruit Crops
N6: DATE PREPARED
N7: 2019-12-12
H10: ANNUAL BURDEN
A11: IDENTIFICATION OF REPORTING OR RECORDKEEPING REQUIREMENT | H11: REPORTS | M11: RECORDS
A12: SECTION OF REGS. (A) | B12: DESCRIPTION (B) | G12: FORM NOS. (If "none" so state) (C) | H12: NO. OF RESPONDENTS (D) | I12: NO. OF RESPONSES PER RESPONDENT (E) | J12: TOTAL ANNUAL RESPONSES (COL. D X E) (F) | K12: HOURS PER RESPONSE (G) | L12: TOTAL HOURS (COL. F X G) (H) | M12: NO. OF RECORD KEEPERS (I) | N12: ANNUAL HOURS PER RECORDKEEPER (J) | O12: TOTAL RECORD KEEPING HOURS (COL I X J) (K)
A13: 7 CFR | B13: Committee Ballots/Nominations
A14: 915.22 915.115 | B14: 915 - Avocados Committee Grower Registration Form | G14: SC-208 | H14: 10 | I14: 1.0000 | J14: =SUM(H14*I14) -> 10.00 | K14: 0.1670 | L14: =SUM(J14*K14) -> 1.67 | O14: =SUM(M14*N14) -> 0.00
A15: 915.22 | B15: 915 - Avocados Handler Ballot to Nominate Members and Alternates (District 1 or District 2) | G15: SC-266-11 | H15: 352 | I15: 1.0000 | J15: =SUM(H15*I15) -> 352.00 | K15: 0.0830 | L15: =SUM(J15*K15) -> 29.22 | O15: 0.00
A16: 915.22 | B16: 915 - Avocados Grower Ballot to Nominate Members and Alternates (District 1 or District 2) | G16: SC-266-10 | H16: 32 | I16: 1.0000 | J16: 32.00 | K16: 0.0830 | L16: 2.66 | O16: 0.00
A17: 915.115 | B17: 915 - Avocados Proxy Authorization | G17: SC-216 | H17: 4 | I17: 1.0000 | J17: 4.00 | K17: 0.1670 | L17: 0.67 | O17: 0.00
A18: 920.122 | B18: 920 - Kiwifruit Official Nomination Form | G18: SC-266-2 | H18: 140 | I18: 1.0000 | J18: =SUM(H18*I18) -> 140.00 | K18: 0.1670 | L18: =SUM(J18*K18) -> 23.38 | O18: =SUM(M18*N18) -> 0.00
A19: 920.122 | B19: 920 - Kiwifruit Official Ballot | G19: SC-266-3 | H19: 140 | I19: 1.0000 | J19: =SUM(H19*I19) -> 140.00 | K19: 0.1670 | L19: =SUM(J19*K19) -> 23.38 | O19: =SUM(M19*N19) -> 0.00
A20: 929.22(e)(1), (2) | B20: 929 - Cranberries Member and Alternate Member Nomination Form | G20: SC-650 | H20: 500 | I20: 0.5000 | J20: 250.00 | K20: 0.0830 | L20: 20.75 | O20: 0.00
A21: 929.22(f)(1) | B21: 929 - Cranberries Member and Alternate Member Ballot | G21: SC-651 | H21: 500 | I21: 0.5000 | J21: 250.00 | K21: 0.0830 | L21: 20.75 | O21: 0.00
B22: SUBTOTAL | J22: =SUM(J14:J21) -> 1,178.00 | L22: =SUM(L14:L21) -> 122.47 | M22: =SUM(M14:M21) -> 0.00 | N22: =SUM(N14:N21) -> 0.00 | O22: =SUM(O14:O18) -> 0.00
B23: TOTAL OF ALL PAGES | J23: =J22+J37+J50+J61+J72+J83+J93+J105+J116+J128+J140+J155+J166+J171 -> 24,682.15 | L23: =L22+L37+L50+L61+L72+L83+L93+L105+L116+L128+L140+L155+L166+L171 -> 7,293.90 | M23: =SUM(M95:M104) -> 406.00 | O23: =O95+O96+O97+O98+O99+O100+O101+O102+O103+O104 -> 486.40
A24: TOTAL - COLUMNS "F" AND "I" = OMB 831, 13 b; COLUMNS "H" AND "K" = OMB 831, 13c | J24: =SUM(J23+M23) -> 25,088.15 | L24: =SUM(L23+O23) -> 7,780.30 | M24: 406.00 | O24: 486.40
A25: 7 CFR | B25: Letter of Acceptance
A26: 906.25 | B26: 906 - Texas Citrus (No burden, only signature required) | G26: None | H26: 30 | I26: 0.3333 | J26: =SUM(H26*I26) -> 10.00 | L26: =SUM(J26*K26) -> 0.00 | O26: =SUM(M26*N26) -> 0.00
A27: 915.25 | B27: 915 - Avocados (No burden, only signature required) | G27: None | H27: 20 | I27: 1.0000 | J27: 20.00 | L27: 0.00 | O27: 0.00
A28: 922.25 | B28: 922 - Apricots (No burden, only signature required) | G28: None | H28: 24 | I28: 0.5000 | J28: 12.00 | L28: 0.00 | O28: 0.00
A29: 929.25 | B29: 929 - Cranberries (No burden, only signature required) | G29: None | H29: 16 | I29: 0.5000 | J29: =SUM(H29*I29) -> 8.00 | L29: =SUM(J29*K29) -> 0.00 | O29: =SUM(M29*N29) -> 0.00
A30: 7 CFR | B30: Confidential Background Questionnaire (Standardized Form)
A31: 905.23, 915.23, 920.25, 927.20, 927.26, 929.20 | B31: Background Questionnaire for Public Members and Alternates (Approved under 0581-0177) | G31: SC-8 | H31: 18 | I31: 0.5000 | J31: =SUM(H31*I31) -> 9.00 | K31: 0.0830 | L31: =SUM(J31*K31) -> 0.75 | O31: 0.00
A32: 905.23, 906.23, 915.23, 920.25, 922.21, 923.23, 925.22, 927.20, 927.26, 929.22 | B32: Background Questionnaire for Industry Members and Alternates (Approved under 0581-0177) | G32: SC-9 | H32: 265 | I32: 0.5000 | J32: =SUM(H32*I32) -> 132.50 | K32: 0.0830 | L32: 11.00 | O32: 0.00
A33: 7 CFR | B33: Marketing Agreement/Handler Agreement
A34: 900.14 | B34: 905 - Florida Citrus | G34: SC-162 | H34: 75 | I34: 0.1667 | J34: =SUM(H34*I34) -> 12.50 | K34: 0.0830 | L34: =SUM(J34*K34) -> 1.04 | O34: =SUM(M34*N34) -> 0.00
A35: 900.14 | B35: 906 - Texas Citrus | G35: SC-81 | H35: 22 | I35: 0.1667 | J35: =SUM(H35*I35) -> 3.67 | K35: 0.0830 | L35: =SUM(J35*K35) -> 0.30 | O35: =SUM(M35*N35) -> 0.00
A36: 900.14 | B36: 915 - Avocados | G36: SC-96 | H36: 0 | I36: 0.1667 | J36: =SUM(H36*I36) -> 0.00 | K36: 0.0830 | L36: =SUM(J36*K36) -> 0.00 | O36: =SUM(M36*N36) -> 0.00
B37: SUBTOTAL | J37: =SUM(J25:J36) -> 207.67 | L37: =SUM(L25:L36) -> 13.09 | O37: =SUM(O20:O24) -> 972.80
A38: 900.14 | B38: 920 - Kiwifruit | G38: SC-71 | H38: 24 | I38: 0.1667 | J38: =SUM(H38*I38) -> 4.00 | K38: 0.0830 | L38: =SUM(J38*K38) -> 0.33 | O38: =SUM(M38*N38) -> 0.00
A39: 900.14 | B39: 922 - Apricots | G39: SC-151 | H39: 20 | I39: 0.1667 | J39: =SUM(H39*I39) -> 3.33 | K39: 0.0830 | L39: =SUM(J39*K39) -> 0.28 | O39: =SUM(M39*N39) -> 0.00
A40: 900.14 | B40: 923 - Sweet Cherries | G40: SC-21 | H40: 56 | I40: 0.1667 | J40: =SUM(H40*I40) -> 9.34 | K40: 0.0830 | L40: =SUM(J40*K40) -> 0.77 | O40: =SUM(M40*N40) -> 0.00
A41: 900.14 | B41: 925 - California Desert Grapes | G41: SC-78 | H41: 15 | I41: 1.0000 | J41: =SUM(H41*I41) -> 15.00 | K41: 0.0830 | L41: =SUM(J41*K41) -> 1.25 | O41: =SUM(M41*N41) -> 0.00
A42: 900.14 | B42: 927 - Fresh Pears | G42: SC-119 | H42: 50 | I42: 0.1667 | J42: =SUM(H42*I42) -> 8.34 | K42: 0.0830 | L42: =SUM(J42*K42) -> 0.69 | O42: =SUM(M42*N42) -> 0.00
A43: 900.14 | B43: 927 - Processed Pears | G43: SC-130 | H43: 50 | I43: 0.1667 | J43: 8.34 | K43: 0.0830 | L43: 0.69 | O43: 0.00
A44: 900.14 | B44: 929 - Cranberries | G44: SC-263 | H44: 50 | I44: 0.1667 | J44: 8.34 | K44: 0.0830 | L44: 0.69 | O44: 0.00
A45: 7 CFR | B45: Certificate of Resolution
A46: 900.14 | B46: 905 - Florida Citrus Cooperative's Certified Resolution | G46: SC-162A | H46: 18 | I46: 0.1667 | J46: =SUM(H46*I46) -> 3.00 | K46: 0.0830 | L46: =SUM(J46*K46) -> 0.25 | O46: =SUM(M46*N46) -> 0.00
A47: 900.14 | B47: 922 - Apricots | G47: SC-151A | H47: 20 | I47: 0.1667 | J47: =SUM(H47*I47) -> 3.33 | K47: 0.0830 | L47: =SUM(J47*K47) -> 0.28 | O47: =SUM(M47*N47) -> 0.00
A48: 900.14 | B48: 923 - Sweet Cherries | G48: SC-21A | H48: 56 | I48: 0.1667 | J48: =SUM(H48*I48) -> 9.34 | K48: 0.0830 | L48: =SUM(J48*K48) -> 0.77 | O48: =SUM(M48*N48) -> 0.00
A49: 900.14 | B49: 927 - Fresh Pears | G49: SC-119A | H49: 50 | I49: 0.1667 | J49: =SUM(H49*I49) -> 8.34 | K49: 0.0830 | L49: =SUM(J49*K49) -> 0.69 | O49: =SUM(M49*N49) -> 0.00
B50: SUBTOTAL | J50: =SUM(J38:J49) -> 80.68 | L50: =SUM(L38:L49) -> 6.70 | O50: =SUM(O41:O42) -> 0.00
A51: 900.14 | B51: 927 - Processed Pears | G51: SC-130A | H51: 50 | I51: 0.1667 | J51: =SUM(H51*I51) -> 8.34 | K51: 0.0830 | L51: =SUM(J51*K51) -> 0.69 | O51: =SUM(M51*N51) -> 0.00
A52: 7 CFR | B52: Producer Referendum
A53: 900.14 905.83 | B53: 905 - Florida Citrus Official Producer Referendum Ballot | G53: SC-160 | H53: 500 | I53: 0.1667 | J53: =SUM(H53*I53) -> 83.35 | K53: 0.3300 | L53: =SUM(J53*K53) -> 27.51 | O53: =SUM(M53*N53) -> 0.00
A54: 905.83 | B54: 905 - Florida Citrus Cooperative Association Producer Ballot | G54: SC-161 | H54: 18 | I54: 0.1667 | J54: 3.00 | K54: 0.0300 | L54: 0.09 | O54: 0.00
A55: 900.14 906.55 | B55: 906 - Texas Citrus Producer Referendum Ballot | G55: SC-83 | H55: 170 | I55: 0.1667 | J55: 28.34 | K55: 0.3300 | L55: 9.35 | O55: 0.00
A56: 900.14 915.64 | B56: 915 - Avocados Producer Referendum Ballot | G56: SC-98 | H56: 300 | I56: 0.1667 | J56: =SUM(H56*I56) -> 50.01 | K56: 0.3300 | L56: =SUM(J56*K56) -> 16.50 | O56: =SUM(M56*N56) -> 0.00
A57: 900.14 920.63(c) | B57: 920 - Kiwifruit Producer Referendum Ballot | G57: SC-70 | H57: 140 | I57: 0.1667 | J57: =SUM(H57*I57) -> 23.34 | K57: 0.3300 | L57: =SUM(J57*K57) -> 7.70 | O57: =SUM(M57*N57) -> 0.00
A58: 900.14 920.63(c) | B58: 920 - Kiwifruit Amendatory Referendum Ballot | G58: SC-70-A | H58: 140 | I58: 0.1667 | J58: 23.34 | K58: 0.3300 | L58: 7.70 | O58: 0.00
A59: 900.14 922.64 | B59: 922 - Apricots Producer's Referendum Ballot (Amendment and Termination) | G59: SC-150 | H59: 90 | I59: 0.1667 | J59: 15.00 | K59: 0.3300 | L59: 4.95 | O59: =SUM(M59*N59) -> 0.00
A60: 900.14 922.64 | B60: 922- Apricots Cooperative Association Referendum Ballot (Amendment and Termination) | G60: SC-150A | H60: 4 | I60: 0.1670 | J60: 0.67 | K60: 0.3300 | L60: 0.22 | O60: =SUM(M60*N60) -> 0.00
B61: SUBTOTAL | J61: =SUM(J51:J60) -> 235.38 | L61: =SUM(L51:L60) -> 74.72 | O61: =SUM(O43:O46) -> 0.00
A62: 900.14 922.64 | B62: 922 - Apricots Cooperative Association Certificate of Resolution | G62: SC-150B | H62: 4 | I62: 0.1670 | J62: =SUM(H62*I62) -> 0.67 | K62: 0.0830 | L62: =SUM(J62*K62) -> 0.06 | O62: =SUM(M62*N62) -> 0.00
A63: 900.14 923.64 | B63: 923 - Sweet Cherries | G63: SC-22 | H63: 1,450 | I63: 0.1670 | J63: =SUM(H63*I63) -> 242.15 | K63: 0.3300 | L63: =SUM(J63*K63) -> 79.91 | O63: =SUM(M63*N63) -> 0.00
A64: 900.14 923.64 | B64: 923 - Sweet Cherries Cooperative Association Referendum Ballot (Amendment and Termination) | G64: SC-22A | H64: 6 | I64: 0.1670 | J64: 1.00 | K64: 0.3300 | L64: 0.33 | O64: 0.00
A65: 900.14 923.64 | B65: 923 - Sweet Cherries Cooperative Association Certificate of Resolution | G65: SC-22B | H65: 6 | I65: 0.1670 | J65: 1.00 | K65: 0.0830 | L65: 0.08 | O65: 0.00
A66: 900.14 925.63 | B66: 925 - California Desert Grapes | G66: SC-77 | H66: 50 | I66: 0.1667 | J66: 8.34 | K66: 0.3300 | L66: 2.75 | O66: 0.00
A67: 900.14 927.78 | B67: 927 - Fresh Pears Producer's Referendum Ballot | G67: SC-118 | H67: 830 | I67: 0.1667 | J67: 138.36 | K67: 0.3300 | L67: 45.66 | O67: 0.00
A68: 900.14 927.78 | B68: 927 - Fresh Pears Cooperative Association Referendum Ballot | G68: SC-118A | H68: 10 | I68: 0.1667 | J68: 1.67 | K68: 0.3300 | L68: 0.55 | O68: 0.00
A69: 900.14 927.78 | B69: 927 - Fresh Pears Cooperative Association Certificate of Resolution | G69: SC-118B | H69: 10 | I69: 0.1667 | J69: =SUM(H69*I69) -> 1.67 | K69: 0.0830 | L69: =SUM(J69*K69) -> 0.14 | O69: =SUM(M69*N69) -> 0.00
A70: 900.14 927.78 | B70: 927 - Processed Pear Producers' Referendum Ballot | G70: SC-128 | H70: 1,500 | I70: 0.1667 | J70: =SUM(H70*I70) -> 250.05 | K70: 0.3300 | L70: =SUM(J70*K70) -> 82.52 | O70: =SUM(M70*N70) -> 0.00
A71: 900.14 927.78 | B71: 927 - Processed Pear Cooperative Association Referendum Ballot | G71: SC-128A | H71: 10 | I71: 0.1667 | J71: =SUM(H71*I71) -> 1.67 | K71: 0.3300 | L71: =SUM(J71*K71) -> 0.55 | O71: =SUM(M71*N71) -> 0.00
B72: SUBTOTAL | J72: =SUM(J62:J71) -> 646.57 | L72: =SUM(L62:L71) -> 212.54 | O72: =SUM(O65:O67) -> 0.00
A73: 900.14 927.78 | B73: 927 - Processed Pear Cooperative Association Certificate of Resolution | G73: SC-128B | H73: 10 | I73: 0.1667 | J73: =SUM(H73*I73) -> 1.67 | K73: 0.0830 | L73: =SUM(J73*K73) -> 0.14 | O73: =SUM(M73*N73) -> 0.00
A74: 929.69 | B74: 929 - Cranberries Continuance Referendum Ballot | G74: SC-53 | H74: 1,250 | I74: 0.2500 | J74: =SUM(H74*I74) -> 312.50 | K74: 0.3300 | L74: =SUM(J74*K74) -> 103.13 | O74: =SUM(M74*N74) -> 0.00
A75: 900.403 | B75: 929 - Cranberries Amendatory Grower Referendum Ballot | G75: SC-288 | H75: 1,250 | I75: 0.1666 | J75: =SUM(H75*I75) -> 208.25 | K75: 0.3300 | L75: =SUM(J75*K75) -> 68.72 | O75: =SUM(M75*N75) -> 0.00
A76: 900.403 | B76: 929 - Cranberries Amendatory Processor Referendum Ballot | G76: SC-287 | H76: 28 | I76: 0.1666 | J76: 4.66 | K76: 0.3300 | L76: 1.54 | O76: 0.00
A77: 900.403 | B77: 929 - Cranberries Certificate of Resolution and Amendatory Co-op Referendum Ballot | G77: SC-286 | H77: 1 | I77: 0.1666 | J77: 0.17 | K77: 0.3300 | L77: 0.05 | O77: 0.00
A78: 7 CFR | B78: Certificate of Privilege
A79: 905.147 | B79: 905 - Florida Citrus Application for a Repacking Certificate of Privilege | G79: CAC-100 | H79: 10 | I79: 1.0000 | J79: =SUM(H79*I79) -> 10.00 | K79: 0.0830 | L79: =SUM(J79*K79) -> 0.83 | O79: =SUM(M79*N79) -> 0.00
A80: 905.147 | B80: 905 - Florida Citrus Application for Certificate of Privilege by Special Purpose Shipper | G80: CAC-200 | H80: 8 | I80: 12.0000 | J80: =SUM(H80*I80) -> 96.00 | K80: 0.0830 | L80: =SUM(J80*K80) -> 7.97 | O80: =SUM(M80*N80) -> 0.00
A81: 905.148 | B81: 905 - Florida Citrus Report of Shipments Under Certificate of Privilege (Repacking) | G81: CAC-110 | H81: 10 | I81: 50.0000 | J81: =SUM(H81*I81) -> 500.00 | K81: 0.1200 | L81: =SUM(J81*K81) -> 60.00 | O81: =SUM(M81*N81) -> 0.00
A82: 906.120(d) | B82: 906 - Texas Citrus | G82: None | H82: 14 | I82: 1.0000 | J82: 14.00 | K82: 0.0830 | L82: 1.16 | O82: 0.00
B83: SUBTOTAL | J83: =SUM(J73:J82) -> 1,147.25 | L83: =SUM(L73:L82) -> 243.54 | O83: =SUM(O73:O78) -> 0.00
A84: 923.54 923.322 | B84: 923 - Sweet Cherries Shippers/Receivers Application for Shipment Certificates | G84: None | H84: 6 | I84: 1.0000 | J84: =SUM(H84*I84) -> 6.00 | K84: 0.3300 | L84: =SUM(J84*K84) -> 1.98 | O84: =SUM(M84*N84) -> 0.00
A85: 7 CFR | B85: Special Purpose Shipment
A86: 905.147 | B86: 905 - Florida Citrus Report of Special Purpose Shipment Certified Organic Citrus | G86: CAC-201 | H86: 4 | I86: 1.0000 | J86: 4.00 | K86: 0.0830 | L86: 0.33 | O86: 0.00
A87: 915.55 915.140 | B87: 915 - Avocados Report of Special Purpose Shipment | G87: SC-212 | H87: 2 | I87: 3.0000 | J87: =SUM(H87*I87) -> 6.00 | K87: 0.1000 | L87: =SUM(J87*K87) -> 0.60 | O87: =SUM(M87*N87) -> 0.00
A88: 923.54 923.322 | B88: 923 - Sweet Cherries Special Purpose Shipment Report | G88: None | H88: 6 | I88: 10.0000 | J88: =SUM(H88*I88) -> 60.00 | K88: 0.0830 | L88: =SUM(J88*K88) -> 4.98 | O88: =SUM(M88*N88) -> 0.00
A89: 7 CFR | B89: Application for Registered Handler
A90: 915.50(c) 915.120 | B90: 915 - Avocados | G90: SC-209 | H90: 2 | I90: 1.0000 | J90: =SUM(H90*I90) -> 2.00 | K90: 0.2500 | L90: =SUM(J90*K90) -> 0.50 | O90: =SUM(M90*N90) -> 0.00
A91: 7 CFR | B91: Application for Registered Processor
A92: 915.50(c) 915.141(b) | B92: 915 - Avocados | G92: SC-217 | H92: 1 | I92: 1.0000 | J92: 1.00 | K92: 0.0830 | L92: 0.08 | O92: 0.00
B93: SUBTOTAL | J93: =SUM(J84:J92) -> 79.00 | L93: =SUM(L84:L92) -> 8.48 | O93: =SUM(O84:O92) -> 0.00
A94: 7 CFR | B94: Recordkeeping
A95: 905.148 | B95: 905 - Florida Citrus | G95: None | J95: =SUM(H95*I95) -> 0.00 | L95: =SUM(J95*K95) -> 0.00 | M95: 75 | N95: 5.000 | O95: =SUM(M95*N95) -> 375.00
A96: 906.51(c) | B96: 906 - Texas Citrus | G96: None | J96: =SUM(H96*I96) -> 0.00 | L96: =SUM(J96*K96) -> 0.00 | M96: 22 | N96: 0.100 | O96: =SUM(M96*N96) -> 2.20
A97: 915.50 | B97: 915 - Avocados | G97: None | J97: =SUM(H97*I97) -> 0.00 | L97: =SUM(J97*K97) -> 0.00 | M97: 35 | N97: 0.350 | O97: =SUM(M97*N97) -> 12.25
A98: 920.60(c) | B98: 920 - Kiwifruit | G98: None | J98: =SUM(H98*I98) -> 0.00 | L98: =SUM(J98*K98) -> 0.00 | M98: 24 | N98: 0.550 | O98: =SUM(M98*N98) -> 13.20
A99: 922.60 | B99: 922 - Apricots | G99: None | J99: =SUM(H99*I99) -> 0.00 | L99: =SUM(J99*K99) -> 0.00 | M99: 22 | N99: 0.420 | O99: =SUM(M99*N99) -> 9.24
A100: 923.60 | B100: 923 - Sweet Cherries | G100: None | J100: =SUM(H100*I100) -> 0.00 | L100: =SUM(J100*K100) -> 0.00 | M100: 53 | N100: 0.420 | O100: =SUM(M100*N100) -> 22.26
A101: 925.60(a), (b), (c) | B101: 925 - California Desert Grapes | G101: None | J101: 0.00 | L101: 0.00 | O101: 0.00
A102: 927.70 | B102: 927 - Fresh Pears | G102: None | J102: 0.00 | L102: 0.00 | M102: 50 | N102: 0.500 | O102: 25.00
A103: 927.70 | B103: 927 - Processed Pears | G103: None | J103: =SUM(H103*I103) -> 0.00 | L103: =SUM(J103*K103) -> 0.00 | M103: 75 | N103: 0.350 | O103: =SUM(M103*N103) -> 26.25
A104: 929.63 | B104: 929 - Cranberries | G104: None | J104: 0.00 | L104: 0.00 | M104: 50 | N104: 0.020 | O104: 1.00
B105: SUBTOTAL | J105: =SUM(J94:J104) -> 0.00 | L105: =SUM(L94:L104) -> 0.00 | M105: =SUM(M95:M104) -> 406.00 | N105: =+SUM(N95:N104) -> 7.71 | O105: =SUM(O95:O104) -> 486.40
A106: 7 CFR | B106: Application for Producer Exemption Certificate
A107: 915.53 | B107: 915 - Avocados Producer Exemption | G107: SC-210 | H107: 5 | I107: 1.0000 | J107: =SUM(H107*I107) -> 5.00 | K107: 0.1670 | L107: =SUM(J107*K107) -> 0.84 | O107: =SUM(M107*N107) -> 0.00
A108: 915.110 | B108: 915 - Avocados Certificate of Exemption | G108: SC-210-1 | H108: 5 | I108: 1.0000 | J108: =SUM(H108*I108) -> 5.00 | K108: 0.0830 | L108: =SUM(J108*K108) -> 0.42 | O108: =SUM(M108*N108) -> 0.00
A109: 7 CFR | B109: Packout Report
A110: 927.70 927.125 | B110: 927 - Fresh Pears Handler's Packout Report | G110: None | H110: 50 | I110: 38.0000 | J110: =SUM(H110*I110) -> 1,900.00 | K110: 0.7500 | L110: 1,425.00 | O110: 0.00
A111: 927.70 927.125 | B111: 927 - Fresh Pears Organic Handler's Packout Report | G111: None | H111: 10 | I111: 7.0000 | J111: 70.00 | K111: 0.7500 | L111: =SUM(J111*K111) -> 52.50 | O111: =SUM(M111*N111) -> 0.00
A112: 7 CFR | B112: 905 - Florida Citrus
A113: 905.50 | B113: Florida Citrus Crop Prospects | G113: None | H113: 82 | I113: 1.0000 | J113: 82.00 | K113: 0.0830 | L113: 6.81 | O113: 0.00
A114: 905.153 | B114: Handler Loan and Transfer Form | G114: CAC-301 | H114: 40 | I114: 4.0000 | J114: =SUM(H114*I114) -> 160.00 | K114: 0.0830 | L114: =SUM(J114*K114) -> 13.28 | O114: =SUM(M114*N114) -> 0.00
A115: 905.153 | B115: Report of Red Grapefruit Shipments by Day Regulation Week | G115: CAC-302 | H115: 75 | I115: 77.0000 | J115: =SUM(H115*I115) -> 5,775.00 | K115: 0.0830 | L115: =SUM(J115*K115) -> 479.33 | O115: =SUM(M115*N115) -> 0.00
B116: SUBTOTAL | J116: =SUM(J106:J115) -> 7,997.00 | L116: =SUM(L106:L115) -> 1,978.16 | O116: =SUM(O107:O115) -> 0.00
A117: 905.153 | B117: New Handler Application | G117: CAC-303 | H117: 1 | I117: 0.5000 | J117: =SUM(H117*I117) -> 0.50 | K117: 0.0830 | L117: =SUM(J117*K117) -> 0.04 | O117: =SUM(M117*N117) -> 0.00
A118: 905.149 | B118: Grower Tree Run Certificate Application | G118: CAC-401 | H118: 45 | I118: 1.0000 | J118: =SUM(H118*I118) -> 45.00 | K118: 0.0830 | L118: 3.74 | O118: 0.00
A119: 905.149 | B119: Report of Shipments Under Grower Tree Run Certificate | G119: CAC-402 | H119: 45 | I119: 3.0000 | J119: 135.00 | K119: 0.0830 | L119: 11.21 | O119: 0.00
A120: 905.71 | B120: Handler Supplier Report | G120: None | H120: 45 | I120: 1.0000 | J120: =SUM(H120*I120) -> 45.00 | K120: 0.3300 | L120: =SUM(J120*K120) -> 14.85
A121: 7 CFR | B121: 906 - Texas Citrus
A122: 906.51 | B122: Diversion Report | G122: None | H122: 14 | I122: 20.0000 | J122: =SUM(H122*I122) -> 280.00 | K122: 0.0830 | L122: =SUM(J122*K122) -> 23.24 | O122: =SUM(M122*N122) -> 0.00
A123: 906.51 | B123: Handler Application | G123: None | H123: 22 | I123: 0.0500 | J123: =SUM(H123*I123) -> 1.10 | K123: 0.0830 | L123: =SUM(J123*K123) -> 0.09 | O123: =SUM(M123*N123) -> 0.00
A124: 906.51(a) | B124: Confidential Citrus Crop Questionnaire | G124: None | H124: 183 | I124: 1.0000 | J124: =SUM(H124*I124) -> 183.00 | K124: 0.4170 | L124: =SUM(J124*K124) -> 76.31 | O124: =SUM(M124*N124) -> 0.00
A125: 906.51(b), 906.151(a), (b), (c) | B125: Seller/Buyer Certificate | G125: None | H125: 28 | I125: 60.0000 | J125: =SUM(H125*I125) -> 1,680.00 | K125: 0.0830 | L125: =SUM(J125*K125) -> 139.44 | O125: =SUM(M125*N125) -> 0.00
A126: 906.123(b) | B126: Application & Certification Citrus By-Products Purchase Agreement | G126: None | H126: 19 | I126: 1.0000 | J126: 19.00 | K126: 0.3300 | L126: 6.27 | O126: 0.00
A127: 906.123(b) | B127: Information Data Sheet on Citrus Processor | G127: None | H127: 19 | I127: 1.0000 | J127: 19.00 | K127: 0.0830 | L127: 1.58 | O127: 0.00
B128: SUBTOTAL | J128: =SUM(J117:J127) -> 2,407.60 | L128: =SUM(L117:L127) -> 276.76 | O128: =SUM(O122:O129) -> 0.00
A129: 7 CFR | B129: 915 - Avocados
A130: 915.60 915.150(a), (b) | B130: Avocado Handler's Weekly Report Form (reporting requirement suspended) | G130: SC-215 | H130: 0 | I130: 0.0000 | J130: =SUM(H130*I130) -> 0.00 | K130: 0.0000 | L130: =SUM(J130*K130) -> 0.00 | O130: =SUM(M130*N130) -> 0.00
A131: 7 CFR | B131: 920 - Kiwifruit
A132: 920.110 | B132: Application for Inspection (Waiver Form) | G132: SC-266-12 | H132: 24 | I132: 1.0000 | J132: =SUM(H132*I132) -> 24.00 | K132: 0.1000 | L132: =SUM(J132*K132) -> 2.40 | O132: =SUM(M132*N132) -> 0.00
A133: 920.160(a) | B133: Shipment Report | G133: SC-266-9 | H133: 24 | I133: 8.0000 | J133: 192.00 | K133: 0.5000 | L133: 96.00 | O133: 0.00
A134: 920.160(b) | B134: Kiwifruit Inventory Shipment System (add, deduct, and shipment forms) | G134: SC-266-13 | H134: 24 | I134: 12.0000 | J134: 288.00 | K134: 0.5000 | L134: 144.00 | O134: 0.00
A135: 920.160(c) | B135: Return Receipt of Kiwifruit to Growers | G135: SC-266-5 | H135: 5 | I135: 5.0000 | J135: 25.00 | K135: 0.0830 | L135: 2.08 | O135: 0.00
A136: 920.160(d) | B136: KISS Price/Shipment Report (Paper version and electronic version; electronic burden included in overall burden) | G136: SC-266-6 | H136: 15 | I136: 28.0000 | J136: 420.00 | K136: 1.0000 | L136: 420.00 | O136: 0.00
A137: 920.160 | B137: End-Of-Season F.O.B. Sales Report | G137: SC-266-7 | H137: 27 | I137: 1.0000 | J137: 27.00 | K137: 0.7500 | L137: 20.25 | O137: 0.00
A138: 920.160 | B138: Final Packout Report | G138: SC-266-8 | H138: 27 | I138: 1.0000 | J138: 27.00 | K138: 0.7500 | L138: 20.25 | O138: 0.00
A139: 920.303 | B139: Kiwifruit Restyle Verification Form | G139: SC-266-4 | H139: 24 | I139: 150.0000 | J139: =SUM(H139*I139) -> 3,600.00 | K139: 0.2500 | L139: =SUM(J139*K139) -> 900.00 | O139: =SUM(M139*N139) -> 0.00
B140: SUBTOTAL | J140: =SUM(J130:J139) -> 4,603.00 | L140: =SUM(L130:L139) -> 1,604.98 | O140: =SUM(O144:O147) -> 0.00
A141: 7 CFR | B141: 922 - Apricots
A142: 922.55 922.111 | B142: Application for Waiver of Inspection at Time of Shipment | G142: None | H142: 1 | I142: 1.0000 | J142: 1.00 | K142: 0.0830 | L142: 0.08 | O142: 0.00
A143: 922.55 922.111 | B143: Waiver of Inspection Permit | G143: None | H143: 1 | I143: 5.0000 | J143: 5.00 | K143: 0.0830 | L143: 0.42 | O143: 0.00
A144: 7 CFR | B144: 925 - California Desert Grapes | O144: =SUM(M144*N144) -> 0.00
A145: 925.50 | B145: Grape Acreage Report | G145: CDGAC-7 | H145: 50 | I145: 1.0000 | J145: =SUM(H145*I145) -> 50.00 | K145: 0.5000 | L145: =SUM(J145*K145) -> 25.00 | O145: 0.00
A146: 925.54 925.304(c) | B146: Organically Grown Grapes | G146: CDGAC-1 | H146: 6 | I146: 1.0000 | J146: =SUM(H146*I146) -> 6.00 | K146: 0.1600 | L146: =SUM(J146*K146) -> 0.96 | O146: 0.00
A147: 925.54 | B147: Experimental Containers | G147: CDGAC-5 | H147: 1 | I147: 1.0000 | J147: =SUM(H147*I147) -> 1.00 | K147: 0.1600 | L147: =SUM(J147*K147) -> 0.16 | O147: 0.00
A148: 925.160 | B148: End of Season Shipment Report | G148: CDGAC-3 | H148: 15 | I148: 1.0000 | J148: =SUM(H148*I148) -> 15.00 | K148: 0.5000 | L148: =SUM(J148*K148) -> 7.50 | O148: =SUM(M148*N148) -> 0.00
A149: 925.304 925.160 | B149: Food Donation Form | G149: CDGAC-8 | H149: 14 | I149: 1.0000 | J149: =SUM(H149*I149) -> 14.00 | K149: 0.1670 | L149: =SUM(J149*K149) -> 2.34 | O149: 0.00
A150: 7 CFR | B150: 927 - Oregon and Washington Fresh Pears
A151: 927.70 927.125 | B151: Handler Statement of Fresh Pear Shipments | G151: None | H151: 50 | I151: 25.0000 | J151: =SUM(H151*I151) -> 1,250.00 | K151: 0.7500 | L151: =SUM(J151*K151) -> 937.50 | O151: =SUM(M151*N151) -> 0.00
A152: 927.70 927.125 | B152: Pear Size and Grade Storage Report | G152: None | H152: 50 | I152: 5.0000 | J152: =SUM(H152*I152) -> 250.00 | K152: 1.0000 | L152: 250.00 | O152: 0.00
B153: Handler's Packout Report
B154: Organic Handler's Packout Report
B155: SUBTOTAL | J155: =SUM(J142:J152) -> 1,592.00 | L155: =SUM(L142:L152) -> 1,223.96 | O155: =SUM(O148:O162) -> 0.00
A156: 7 CFR | B156: 927 - Oregon and Washington Processed Pears
A157: 927.70 927.125 | B157: Assessment Report | G157: None | H157: 75 | I157: 1.0000 | J157: =SUM(H157*I157) -> 75.00 | K157: 0.7500 | L157: =SUM(J157*K157) -> 56.25 | O157: =SUM(M157*N157) -> 0.00
A158: 7 CFR | B158: 929 - Cranberries
A159: 929.62 | B159: Grower Sales and Acreage Report | G159: CMC GSAR-1 | H159: 1,250 | I159: 1.0000 | J159: =SUM(H159*I159) -> 1,250.00 | K159: 0.3300 | L159: 412.50 | O159: 0.00
A160: 929.49 929.50 | B160: Leased Acreage Form | G160: CMC L1 | H160: 25 | I160: 1.0000 | J160: =SUM(H160*I160) -> 25.00 | K160: 0.3300 | L160: =SUM(J160*K160) -> 8.25 | O160: =SUM(M160*N160) -> 0.00
A161: 929.50 929.110 | B161: Cranberry Acreage & Sales History Transfer Form (Seller) | G161: CMC Trf-20XX-20XX | H161: 50 | I161: 1.0000 | J161: =SUM(H161*I161) -> 50.00 | K161: 0.2000 | L161: =SUM(J161*K161) -> 10.00 | O161: =SUM(M161*N161) -> 0.00
A162: 929.50 929.110 | B162: Cranberry Acreage & Sales History Transfer Form (Buyer) | G162: CMC Trf-20XX-20XX | H162: 50 | I162: 1.0000 | J162: 50.00 | K162: 0.2000 | L162: 10.00 | O162: 0.00
A163: 929.55 | B163: Interhandler Transfer Form | G163: 1HTR | H163: 50 | I163: 4.0000 | J163: =SUM(H163*I163) -> 200.00 | K163: 0.3300 | L163: =SUM(J163*K163) -> 66.00 | O163: =SUM(M163*N163) -> 0.00
A164: 929.62 | B164: Grower Acquisition Listing | G164: CMC GAL | H164: 50 | I164: 1.0000 | J164: =SUM(H164*I164) -> 50.00 | K164: 0.3300 | L164: =SUM(J164*K164) -> 16.50 | O164: =SUM(M164*N164) -> 0.00
A165: 929.62 929.105 | B165: Handler Inventory Report | G165: HIR | H165: 50 | I165: 4.0000 | J165: 200.00 | K165: 0.3300 | L165: 66.00 | O165: 0.00
B166: SUBTOTAL | J166: =SUM(J157:J165) -> 1,900.00 | L166: =SUM(L157:L165) -> 645.50 | O166: =SUM(O160:O165) -> 0.00
A167: 929.62 929.105 | B167: Processor Inventory Report | G167: PIR | H167: 12 | I167: 4.0000 | J167: =SUM(H167*I167) -> 48.00 | K167: 1.0000 | L167: =SUM(J167*K167) -> 48.00 | O167: =SUM(M167*N167) -> 0.00
A168: 929.49(d) | B168: Growers Notice of Intent to Produce and Qualifying for Annual Allotment Form | G168: CMC AL 1 | H168: 1,250 | I168: 1.0000 | J168: 1,250.00 | K168: 0.3300 | L168: 412.50 | O168: 0.00
A169: 929.151(c) | B169: Disposition Allotments | G169: CMC T7 | H169: 1,250 | I169: 1.0000 | J169: 1,250.00 | K169: 0.3300 | L169: 412.50 | O169: 0.00
A170: 929.66 | B170: Letter of Acknowledgement | G170: None | H170: 60 | I170: 1.0000 | J170: 60.00 | K170: 0.1670 | L170: 10.02
B171: SUBTOTAL | J171: =SUM(J167:J170) -> 2,608.00 | L171: =SUM(L167:L170) -> 883.02 | O171: =SUM(O165:O170) -> 0.00
